fUST/lending_fUST_20240101
["ID","MTS","AMOUNT","RATE_DAILY","PERIOD"]
[309757345,1704088238908,-151.0,0.00025,2]
[309757347,1704088238917,-37.80605088,0.00025,2]
[309757648,1704088241755,-2962.19394912,0.00025,2]
[309757650,1704088241764,-151.0,0.00025259,2]
[309757652,1704088241773,-151.0,0.00025259,2]
[309757654,1704088241783,-151.0,0.00025286,2]
[309757655,1704088241793,-1232.65970291,0.00025287,2]
[309757658,1704088241803,-151.0,0.00025287,2]
[309757659,1704088241813,-151.0,0.00025287,2]
[309757662,1704088241823,-20041.5747637,0.00025478,2]
[309757663,1704088241833,-108.21246624,0.00025507,2]
[309757666,1704088241846,-3588.49847086,0.00025507,2]
[309757668,1704088241855,-166.666666,0.00025537,2]
[309757670,1704088241865,-1624.6388276,0.00025586,2]
[309757672,1704088241874,-166.666666,0.00026181,2]
[309757674,1704088241883,-1149.115492,0.00026301,2]
[309757676,1704088241893,-166.666666,0.00026824,2]
[309757678,1704088241903,-2546.99337017,0.00027,2]
[309757680,1704088241912,-1149.115492,0.00027275,2]
[309757682,1704088241921,-851.81467386,0.0002739,2]
[309757684,1704088241930,-200.0,0.00027499,15]
[309757685,1704088241939,-158.0,0.00027918,2]
[309757687,1704088241948,-2285.00453054,0.00027998,2]
[309757689,1704088241957,-1149.115492,0.00028248,2]
[309757691,1704088241966,-4037.24983856,0.00028887,2]
[309757693,1704088241976,-23069.94519533,0.00028888,10]
[309757963,1704088244745,-322.42951268,0.00028888,10]
[309758859,1704089441358,-154.86062544,0.00025922,4]
[309758860,1704089441368,-157.41608813,0.00025923,2]
[309758861,1704089441384,-11.04621187,0.00025923,2]
[309758862,1704089441394,-200.0,0.00026372,15]
[309758863,1704089441404,-302.2074958,0.00026441,2]
[309758864,1704089441414,-226.762741,0.00026515,2]
[309758865,1704089441423,-1203.33777769,0.00027,2]
[309758880,1704089471257,292.18391192,0.00022,4]
[309758881,1704089472395,270.28389043,0.00020802,2]
[309759332,1704091210861,175.0,0.00035616,120]
[309759372,1704091832144,-154.86062544,0.00024959,4]
[309759373,1704091832154,-154.82968426,0.00024959,2]
[309759558,1704092091864,-154.86062544,0.00024958,4]
[309759559,1704092091885,-345.13937456,0.00024959,2]
[309759560,1704092094375,155.29558342,0.00022463,2]
[309759561,1704092157886,-2507.02872787,0.00024958,2]
[309759562,1704092157910,-10336.03094118,0.00024959,2]
[309759563,1704092157932,-155.92975685,0.00024959,2]
[309759564,1704092157955,-1000.0,0.00024959,2]
[309759565,1704092157977,-205.38078422,0.00024959,2]
[309759566,1704092157999,-5001.48077155,0.00024959,2]
[309759567,1704092158021,-158.4418249,0.00024959,2]
[309759568,1704092158043,-300.0,0.00024959,2]
[309759569,1704092158066,-154.86062544,0.00024963,4]
[309759570,1704092158086,-168.4623,0.00025762,2]
[309759571,1704092158106,-1547.0558352,0.00025921,2]
[309759572,1704092158128,-175.678918,0.00025934,2]
[309759573,1704092158148,-226.762741,0.00025998,2]
[309759574,1704092158170,-151.0,0.00026119,2]
[309759575,1704092158192,-459.646196,0.00026301,2]
[309759576,1704092158213,-2352.24057779,0.00027,2]
[309759577,1704092452051,-525.0,0.00035616,120]
[309760236,1704093044830,-154.87609912,0.0002494,2]
[309760238,1704093044839,-154.87609912,0.00024941,4]
[309760240,1704093044848,-168.4623,0.00026009,2]
[309760242,1704093044857,-367.716956,0.00026301,2]
[309760244,1704093044866,-90.71854576,0.000264,2]
[309760352,1704093046497,-8967.858612,0.000264,2]
[309760399,1704093310779,-154.87609912,0.00024957,4]
[309760400,1704093310802,-154.87609912,0.00024958,2]
[309760401,1704093310825,-2128.30607029,0.00024962,2]
[309760402,1704093310849,-5661.94173147,0.00025048,2]
[309760403,1704093795932,100.02632905,0.00035616,120]
[309760404,1704093795953,117.97367095,0.00035616,120]
[309760434,1704094235126,-154.87609912,0.00024129,2]
[309760435,1704094235135,-974.23467953,0.00024129,2]
[309760436,1704094235145,-154.87609912,0.0002413,2]
[309760437,1704094235154,-559.40932026,0.00024131,2]
[309760438,1704094235164,-153.07765219,0.00024132,4]
[309760481,1704094243670,-154.87609912,0.00024128,4]
[309760482,1704094243680,-534.98621227,0.00024132,2]
[309760483,1704094243873,-98.50528458,0.00024132,2]
[309760504,1704094246617,-1605.2271849,0.00024132,2]
[309760527,1704094547337,-974.23467953,0.00024121,2]
[309760528,1704094547358,-154.87609912,0.00024122,2]
[309760529,1704094547379,-154.87609912,0.00024123,4]
[309760530,1704094547400,-4525.01312223,0.00024124,2]
[309760538,1704095169581,167.564483,0.00022895,2]
[309760539,1704095200552,1000.0,0.00022895,2]
[309760540,1704095201187,732.66780105,0.00022895,2]
[309760541,1704095204605,-154.87609912,0.00023093,4]
[309760542,1704095204627,-223.12390088,0.00023094,2]
[309760543,1704095205238,1520.63978358,0.00022895,2]
[309760544,1704095205274,5975.66580939,0.00022895,2]
[309760546,1704095256994,-175.0,0.00035616,120]
[309760547,1704095273491,-974.23467953,0.00022893,2]
[309760548,1704095273511,-4906.45463586,0.00022894,2]
[309760549,1704095273534,-4285.74578594,0.00022895,2]
[309760550,1704095273565,-297.6005845,0.00022895,2]
[309760551,1704095273585,-732.66780105,0.00022895,2]
[309760552,1704095273605,-1000.0,0.00022895,2]
[309760553,1704095273626,-727.90423888,0.00022895,2]
[309760554,1704095273646,-2074.80218576,0.00022895,2]
[309760555,1704095273665,-1349.55044235,0.00022895,5]
[309760556,1704095273685,-2304.03964613,0.00022895,2]
[309760558,1704095315579,-212.231238,0.00035616,120]
[309760559,1704095315606,-12.768762,0.00042,120]
[309760560,1704095336046,-139.231238,0.00042,120]
[309760561,1704095336156,-110.768762,0.00044027,120]
[309760562,1704095351813,-39.231238,0.00044027,120]
[309760563,1704095351834,-210.768762,0.0004409,120]
[309760564,1704095374660,-250.0,0.0004409,120]
[309760565,1704095388010,-250.0,0.0004409,120]
[309760566,1704095399801,-250.0,0.0004409,120]
[309760567,1704095419643,-250.0,0.0004409,120]
[309760574,1704095431692,-154.87609912,0.00022891,4]
[309760575,1704095431701,-2507.02872787,0.00022891,2]
[309760576,1704095431711,-974.23467953,0.00022892,2]
[309760577,1704095431729,-508.63291032,0.00022895,5]
[309760578,1704095431740,-205.38078422,0.00022895,2]
[309760579,1704095431750,-197.31531579,0.00022895,2]
[309760580,1704095431760,-1000.0,0.00022895,2]
[309760581,1704095431769,-158.4418249,0.00022895,2]
[309760582,1704095431779,-155.92975685,0.00022895,2]
[309760583,1704095431789,-26.87609912,0.00023094,2]
[309760584,1704095431799,-155.14279736,0.00024132,2]
[309760585,1704095431809,-225.62738228,0.00025048,2]
[309760586,1704095431818,-9896.05802049,0.00025066,2]
[309760587,1704095431828,-23032.9399212,0.00025067,2]
[309760588,1704095431838,-200.0,0.00025183,7]
[309760589,1704095431847,-167.564483,0.00026016,2]
[309760590,1704095431857,-294.173564,0.00026301,2]
[309760591,1704095431866,-2546.99337017,0.00027,2]
[309760592,1704095431876,-3470.06153041,0.00027182,2]
[309760593,1704095431886,-294.173564,0.00027275,2]
[309760594,1704095431896,-280.0,0.00027702,15]
[309760595,1704095431906,-397.59,0.00027728,3]
[309760596,1704095431916,-686.99,0.00027728,3]
[309760597,1704095431926,-572.49,0.00027728,3]
[309760598,1704095431935,-477.07,0.00027728,3]
[309760599,1704095431945,-308.22555678,0.00027736,2]
[309760600,1704095431957,-344.03024061,0.00027736,2]
[309760601,1704095431968,-262.12724349,0.00027736,2]
[309760602,1704095431977,-172.51619003,0.00027736,2]
[309760603,1704095431986,-295.38717248,0.00027736,2]
[309760604,1704095431997,-453.11548143,0.00027736,2]
[309760605,1704095432006,-2088.30212049,0.00027736,2]
[309760606,1704095432016,-539.20356591,0.00027736,2]
[309760607,1704095432025,-173.46003241,0.00027736,2]
[309760608,1704095432035,-161.829124,0.00027736,2]
[309760609,1704095432044,-558.84716466,0.00027736,2]
[309760610,1704095432054,-201.46400286,0.00027736,2]
[309760611,1704095432063,-1037.00033996,0.00027736,2]
[309760612,1704095432073,-3485.21669508,0.00027736,2]
[309760613,1704095432082,-1576.94824213,0.00027737,2]
[309760614,1704095432091,-500.0,0.00027737,2]
[309760615,1704095432101,-200.61746361,0.00027737,2]
[309760616,1704095432110,-607.61296224,0.00027737,2]
[309760617,1704095432120,-20456.89514492,0.00027738,3]
[309760644,1704095440606,-250.0,0.0004409,120]
[309760692,1704095461854,-250.0,0.0004409,120]
[309760693,1704095474284,-250.0,0.0004409,120]
[309760694,1704095486153,-39.231238,0.0004409,120]
[309760695,1704095486174,-210.768762,0.00044308,120]
[309760696,1704095496304,-250.0,0.00044308,120]
[309760697,1704095506158,-250.0,0.00044308,120]
[309760698,1704095517039,-250.0,0.00044308,120]
[309760699,1704095530278,-250.0,0.00044308,120]
[309760700,1704095534549,-154.87609912,0.0002496,4]
[309760701,1704095534569,-974.23467953,0.00024961,2]
[309760702,1704095534588,-154.87609912,0.00024962,2]
[309760703,1704095534608,-2546.99337017,0.00027727,2]
[309760704,1704095534628,-7673.46075263,0.00027736,2]
[309760705,1704095534650,-1343.72575199,0.00027736,2]
[309760706,1704095534669,-65329.83324744,0.00027738,3]
[309760707,1704095539729,-250.0,0.00044308,120]
[309760708,1704095552206,-250.0,0.00044308,120]
[309760709,1704095562183,-44.9038068,0.00044308,120]
[309760710,1704095562206,-205.0961932,0.000449,120]
[309760712,1704095642960,-250.0,0.0004,120]
[309760713,1704095647502,6548.6489795,0.000125,2]
[309760714,1704095666312,204.1491954,0.00021,2]
[309760715,1704095699768,730.8035297,0.00021,2]
[309760716,1704095700346,300.0,0.00021,2]
[309760717,1704095702258,3205.77945367,0.00021,2]
[309760718,1704095707349,10261.41159533,0.00021,2]
[309760719,1704095715783,730.8035297,0.00021,2]
[309760720,1704095720345,300.0,0.00021,2]
[309760721,1704095721448,7747.16899241,0.00021,2]
[309760722,1704095722338,3044.88219949,0.00021,2]
[309760723,1704095728748,154.87609912,0.00021,2]
[309760724,1704095733041,-154.87609912,0.00023988,4]
[309760725,1704095733063,-974.23467953,0.00023989,2]
[309760726,1704095733085,-7166.13800009,0.0002399,2]
[309760727,1704095733106,-704.4821417,0.0002421,14]
[309760728,1704095733127,-184.67964728,0.00024863,2]
[309760729,1704095733148,-154.87609912,0.00026701,2]
[309760730,1704095733171,-175.678918,0.00026702,2]
[309760731,1704095733193,-167.564483,0.00026934,2]
[309760732,1704095733214,-226.7627417,0.00026962,2]
[309760733,1704095733237,-331.066071,0.00027377,2]
[309760734,1704095733260,-191.73,0.00027727,3]
[309760735,1704095733282,-365.61,0.00027727,3]
[309760736,1704095733303,-78208.01491016,0.00027737,2]
[309760737,1704095733323,-6849.84234466,0.00027738,3]
[309760738,1704095733345,-160.05164039,0.00028119,2]
[309760739,1704095733365,-153.0,0.00028219,2]
[309760740,1704095733386,-331.066071,0.00028389,2]
[309760741,1704095733410,-500.0,0.00028887,2]
[309760742,1704095733432,-164.56777734,0.00028887,2]
[309760743,1704095733451,-24298.75837591,0.00028888,10]
[309760744,1704095733781,730.8035297,0.00021,2]
[309760745,1704095742357,300.0,0.00021,2]
[309760746,1704095742740,195.95939405,0.00021,2]
[309760747,1704095749786,730.8035297,0.00021,2]
[309760748,1704095758353,300.0,0.00021,2]
[309760749,1704095771762,13414.21591277,0.00021,2]
[309760750,1704095771792,730.8035297,0.00021,2]
[309760751,1704095793819,345.9823515,0.00021,2]
[309760753,1704096334608,315.51335607,0.00021,2]
[309760754,1704096337910,171.90813097,0.00021,2]
[309760755,1704096355201,6535.48669122,0.00021,2]
[309760756,1704096355228,12296.14808405,0.00021,2]
[309760757,1704096373292,2807.65574304,0.00021,2]
[309760813,1704096638345,-200.0,0.00026524,2]
[309760814,1704096638354,-647.162477,0.00026724,2]
[309760815,1704096638367,-6475.29101132,0.00026724,2]
[309760833,1704096642932,-230.0137314,0.00026523,2]
[309760835,1704096642941,-1612.91266873,0.00026724,2]
[309760845,1704096646151,-0.59970903,0.00026523,2]
[309760884,1704096704912,72.02632905,0.00035,120]
[309760885,1704096704933,175.0,0.00035,120]
[309760886,1704096704956,193.615619,0.00035,120]
[309760887,1704096725294,-154.87609912,0.00026522,4]
[309760888,1704096725315,-1154.12390088,0.00026522,2]
[309760889,1704096795005,-4787.96971553,0.00026522,2]
[309760890,1704096795040,-1721.45015767,0.00026522,2]
[309760891,1704096795061,-762.06708544,0.00026522,2]
[309760892,1704096795081,-1262.45083956,0.0002673,2]
[309760893,1704096795104,-198.639642,0.00026731,2]
[309760894,1704096795125,-167.564483,0.00026747,2]
[309760895,1704096795145,-174.991816,0.00026776,2]
[309760896,1704096795191,-2643.52707534,0.00027,2]
[309760897,1704096795212,-164.807599,0.00027256,2]
[309760898,1704096795235,-250.0,0.00027256,2]
[309760899,1704096795255,-198.639642,0.0002772,2]
[309760900,1704096795277,-11966.89194446,0.00027733,2]
[309760901,1704096859485,-154.87609912,0.00026521,4]
[309760902,1704096859507,-402.12390088,0.00026522,2]
[309760903,1704097060011,-154.87609912,0.00026565,4]
[309760904,1704097060032,-174.193858,0.00026566,2]
[309760905,1704097060053,-164.807599,0.00026719,2]
[309760906,1704097060074,-185.397,0.00026766,2]
[309760907,1704097060093,-637.50261214,0.00027396,4]
[309760908,1704097060113,-27.22283174,0.00027396,2]
[309760926,1704097832113,-154.87609912,0.00027395,4]
[309760927,1704097832123,-185.397,0.00027627,2]
[309760928,1704097832134,-274.20494674,0.00027733,2]
[309760929,1704097832147,-1873.26928066,0.00027733,2]
[309760959,1704097838373,-821.51957195,0.00027733,2]
[309761003,1704097843793,-635.50138301,0.00027733,2]
[309761004,1704097843805,-359.7001,0.00027733,2]
[309761010,1704097844865,-6163.63214008,0.00027733,2]
[309761011,1704097844874,-762.06708544,0.00027733,2]
[309761012,1704097844883,-6217.07827782,0.00027734,2]
[309761013,1704097844892,-160.05164039,0.00027796,2]
[309761015,1704097844901,-11620.0080157,0.00027814,2]
[309761017,1704097844911,-5974.37907396,0.00027896,2]
[309761018,1704097844920,-4902.87752551,0.00028888,10]
[309761019,1704097844928,-185.397,0.0002899,2]
[309761020,1704097844937,-895.94439503,0.00029448,2]
[309761021,1704097844946,-397.56,0.00029989,3]
[309761022,1704097844955,-331.3,0.0002999,3]
[309761023,1704097844964,-26170.17774281,0.00029999,2]
[309761035,1704097846263,-0.74304385,0.00029999,2]
[309761036,1704097846275,-1863.20435237,0.00029999,2]
[309761037,1704097846284,-500.0,0.00029999,2]
[309761038,1704097846293,-153.67864465,0.00029999,2]
[309761039,1704097846303,-323.93113917,0.0003,2]
[309761040,1704097972676,-166.23904276,0.00021999,2]
[309761041,1704097972697,-2697.45131281,0.00021999,5]
[309761042,1704097972717,-74.30964443,0.00022,4]
[309761043,1704098037465,-154.87609912,0.00021999,4]
[309761044,1704098037493,-1721.45015767,0.00021999,2]
[309761045,1704098037519,-20821.7469816,0.00021999,2]
[309761046,1704098037544,-217.9146655,0.00022,4]
[309761047,1704098037569,-2074.80218576,0.00022,2]
[309761048,1704098037594,-1326.95273698,0.00022,2]
[309761049,1704098037619,-533.17266667,0.00022,2]
[309761050,1704098037643,-154.87609912,0.00022,2]
[309761051,1704098037664,-1818.17749445,0.00022,2]
[309761052,1704098037686,-154.87609912,0.00022,2]
[309761053,1704098037710,-730.8035297,0.00022,2]
[309761054,1704098037735,-5210.01915065,0.00022,2]
[309761055,1704098037757,-150.0,0.00022,2]
[309761056,1704098037781,-584.33213366,0.00022,2]
[309761057,1704098065190,380.0,0.0002,2]
[309761058,1704098115855,-154.87609912,0.00021999,2]
[309761059,1704098115876,-1262.45083956,0.00021999,2]
[309761060,1704098115896,-100.96470716,0.00022,2]
[309761061,1704098115916,-300.0,0.00022,2]
[309761062,1704098115937,-154.87609912,0.00022,2]
[309761063,1704098115956,-730.8035297,0.00022,2]
[309761064,1704098115976,-2074.80218576,0.00022,2]
[309761065,1704098115996,-2324.72698103,0.00022,2]
[309761066,1704098116015,-1818.17749445,0.00022,2]
[309761067,1704098116035,-154.87609912,0.00022,2]
[309761068,1704098116056,-533.17266667,0.00022,2]
[309761069,1704098116076,-154.87609912,0.00022,2]
[309761070,1704098116096,-1156.39719919,0.00022,2]
[309761071,1704098119898,154.87609912,0.0002,2]
[309761072,1704098127521,154.87609912,0.0002,2]
[309761073,1704098129671,2074.80218576,0.0002,2]
[309761074,1704098130766,155.24904909,0.0002,2]
[309761075,1704098131387,685.29684082,0.0002,2]
[309761076,1704098131713,1818.17749445,0.00021,2]
[309761077,1704098131747,206.40588508,0.0002,2]
[309761078,1704098132386,1326.95273698,0.0002,2]
[309761079,1704098134204,533.17266667,0.0002,2]
[309761080,1704098135682,300.0,0.0002,2]
[309761081,1704098143739,154.87609912,0.0002,2]
[309761082,1704098146392,1326.95273698,0.0002,2]
[309761083,1704098147714,1810.17690863,0.00021,2]
[309761084,1704098149389,685.29684082,0.0002,2]
[309761085,1704098149670,1821.60579757,0.0002,2]
[309761086,1704098154204,533.17266667,0.0002,2]
[309761087,1704098155675,300.0,0.0002,2]
[309761088,1704098161511,154.87609912,0.0002,2]
[309761089,1704098166403,1326.95273698,0.0002,2]
[309761090,1704098169586,685.29684082,0.0002,2]
[309761091,1704098174232,533.17266667,0.0002,2]
[309761092,1704098175681,300.0,0.0002,2]
[309761093,1704098179510,154.87609912,0.0002,2]
[309761094,1704098182878,-154.87609912,0.00022998,4]
[309761095,1704098182910,-974.23467953,0.00022999,2]
[309761096,1704098182935,-2089.19910793,0.00022999,2]
[309761097,1704098182958,-9944.66000919,0.00023,2]
[309761098,1704098182979,-1005.36069399,0.00023,2]
[309761099,1704098183003,-200.0,0.00024199,7]
[309761100,1704098183024,-5942.09361641,0.00024655,2]
[309761101,1704098183045,-24900.0,0.00024849,2]
[309761102,1704098183066,-166.6666669,0.00025078,2]
[309761103,1704098183087,-154.87609912,0.00026183,2]
[309761104,1704098183108,-1721.45015767,0.00026184,2]
[309761105,1704098183129,-177.121045,0.00026185,2]
[309761106,1704098183150,-185.397,0.00026301,2]
[309761107,1704098183171,-280.0,0.00026619,15]
[309761108,1704098183193,-2546.99337017,0.00027,2]
[309761109,1704098183214,-311.26,0.00027374,3]
[309761110,1704098183236,-291.31,0.00027374,3]
[309761111,1704098183261,-242.76,0.00027374,3]
[309761112,1704098183281,-14041.74145497,0.00027384,2]
[309761113,1704098186446,1326.95273698,0.0002,2]
[309761114,1704098187390,685.29684082,0.0002,2]
[309761115,1704098190209,533.17266667,0.0002,2]
[309761116,1704098201604,154.87609912,0.0002,2]
[309761117,1704098203392,682.78578844,0.0002,2]
[309761118,1704098204400,1326.95273698,0.0002,2]
[309761119,1704098212287,533.17266667,0.0002,2]
[309761120,1704098221553,160.8029084,0.0002,2]
[309761121,1704098228413,1326.95273698,0.0002,2]
[309761122,1704098230222,533.17266667,0.0002,2]
[309761123,1704098248227,533.17266667,0.0002,2]
[309761124,1704098248409,1101.14451594,0.0002,2]
[309761125,1704098270223,533.17266667,0.0002,2]
[309761126,1704098290232,225.68917506,0.0002,2]
[309761264,1704099039303,-154.87609912,0.00024528,4]
[309761265,1704099039313,-974.23467953,0.00024529,2]
[309761266,1704099039323,-3917.1194895,0.00024555,2]
[309761267,1704099039333,-167.115574,0.00025421,2]
[309761268,1704099039342,-284.345693,0.00025712,2]
[309761269,1704099039353,-250.0,0.00025783,2]
[309761270,1704099039362,-219.827871,0.00026301,2]
[309761271,1704099039372,-167.115574,0.00026576,2]
[309761272,1704099039381,-219.827871,0.00027275,2]
[309761273,1704099039390,-2546.99337017,0.00027383,2]
[309761274,1704099039400,-7647.18318569,0.00027384,2]
[309761275,1704099039409,-202.3,0.00027386,3]
[309761276,1704099039418,-168.58,0.00027386,3]
[309761277,1704099039427,-842.94,0.00027386,3]
[309761278,1704099039436,-166.55128341,0.00027394,2]
[309761279,1704099039446,-1955.20901272,0.00027394,5]
[309761280,1704099039455,-4787.79234353,0.00027394,2]
[309761281,1704099039464,-1259.7500332,0.00027394,2]
[309761282,1704099039474,-2127.40908285,0.00027394,2]
[309761283,1704099039483,-798.274585,0.00027394,2]
[309761284,1704099039492,-221.11556098,0.00027394,2]
[309761285,1704099039502,-500.0,0.00027395,4]
[309761286,1704099039511,-500.0,0.00027395,4]
[309761287,1704099039520,-439.97248552,0.00027395,4]
[309761288,1704099039530,-414.08030661,0.00027395,2]
[309761289,1704099039539,-503.87039936,0.00027395,2]
[309761290,1704099039548,-281.6839483,0.00027395,2]
[309761291,1704099039559,-155.23016336,0.00027396,2]
[309761292,1704099039571,-734.72028822,0.00027396,2]
[309761293,1704099039579,-75306.35820505,0.00027396,7]
[309761312,1704099043266,-154.87609912,0.00024527,2]
[309761313,1704099043276,-8663.92873684,0.00027396,7]
[309761387,1704099155180,-450.8673199,0.00024651,2]
[309761388,1704099155201,-974.23467953,0.00024652,2]
[309761389,1704099155224,-154.87609912,0.00024653,4]
[309761390,1704099155247,-63.02190145,0.00025296,2]
[309761391,1704099222283,-154.87609912,0.00024655,4]
[309761392,1704099222303,-974.23467953,0.00024655,2]
[309761393,1704099222423,-1096.52675344,0.00025296,2]
[309761394,1704099222443,-2042.36246791,0.00025296,2]
[309761395,1704099350995,-154.87609912,0.00024651,4]
[309761396,1704099351017,-154.87609912,0.00024651,2]
[309761397,1704099351039,-154.87609912,0.00024652,2]
[309761398,1704099351061,-270.32248963,0.00024655,2]
[309761399,1704099351083,-450.8673199,0.00025295,2]
[309761400,1704099351104,-12856.18189311,0.00025295,2]
[309761462,1704100238694,-943.79443279,0.0002444,2]
[309761464,1704100238704,-154.87609912,0.00024441,2]
[309761466,1704100238713,-295.2,0.00024441,2]
[309761468,1704100238723,-2053.78048678,0.00024441,2]
[309762275,1704100246694,-0.03081053,0.0002444,2]
[309763487,1704100376975,-1132.642333,0.00022044,2]
[309763488,1704100376996,-559.40932026,0.00022335,2]
[309763489,1704100377017,-154.87609912,0.00022336,2]
[309763490,1704100377037,-154.87609912,0.00022337,2]
[309763491,1704100377058,-1572.81659635,0.00022337,2]
[309763492,1704100377079,-154.87609912,0.00022338,4]
[309763493,1704100377195,-156.48322816,0.00022338,2]
[309763494,1704100377216,-261.2068474,0.00022338,2]
[309763495,1704100377236,-154.87609912,0.00022338,2]
[309763496,1704100377256,-2089.19910793,0.00022338,2]
[309763497,1704100377277,-773.03243659,0.00022341,2]
[309763498,1704100377297,-450.8673199,0.00023513,2]
[309763499,1704100377317,-4861.50150069,0.00023514,2]
[309763500,1704100377336,-26366.26316002,0.00023515,2]
[309763501,1704100377356,-665.1471829,0.00023519,2]
[309763502,1704100377376,-845.33,0.0002443,3]
[309763503,1704100377396,-154.87609912,0.00024439,2]
[309763504,1704100377418,-19491.7204712,0.0002444,2]
[309763505,1704100442109,-196.8,0.00021997,2]
[309763506,1704100442131,-154.87609912,0.00021998,4]
[309763507,1704100443504,154.87609912,0.00021996,2]
[309763508,1704100444289,154.87609912,0.00023041,2]
[309763509,1704100451327,7.57170264,0.00023041,2]
[309763510,1704100508359,-154.87609912,0.00021993,4]
[309763511,1704100508381,-4906.45463586,0.00023039,2]
[309763512,1704100508402,-443.29561726,0.00023041,2]
[309763513,1704100508422,-732.66780105,0.00023041,2]
[309763514,1704100510041,2089.19910793,0.00023038,2]
[309763515,1704100520708,164.0,0.00023041,2]
[309763516,1704100525939,1.50673878,0.00023041,2]
[309763517,1704100577863,-154.87609912,0.00021993,4]
[309763518,1704100577885,-731.16106227,0.00023041,2]
[309763519,1704100577905,-5001.48077155,0.00023041,2]
[309763520,1704100589942,43.48206706,0.00023041,2]
[309763521,1704100646957,-345.0,0.000219,2]
[309763522,1704100646979,-270.32248963,0.00021993,2]
[309763523,1704100647001,-154.87609912,0.00021993,4]
[309763524,1704100647023,-880.4784136,0.00022988,2]
[309763525,1704100647047,-450.8673199,0.00023041,2]
[309763526,1704100647069,-154.87609912,0.00023041,2]
[309763527,1704100647092,-311.57957863,0.00023041,2]
[309763528,1704100714124,-154.87609912,0.00021993,4]
[309763529,1704100714146,-296.12390088,0.00021993,2]
[309763530,1704100780447,-155.0,0.00021993,2]
[309763531,1704100844097,-154.87609912,0.00021992,2]
[309763532,1704100844119,-154.87609912,0.00021993,4]
[309763533,1704100844141,-166.846229,0.00022276,2]
[309763534,1704100844163,-5465.40157276,0.00022798,2]
[309763535,1704100910633,-974.23467953,0.00021991,2]
[309763536,1704100910653,-450.8673199,0.00021992,2]
[309763537,1704100910677,-453.89800057,0.00021993,2]
[309763538,1704100976746,-171.53,0.00021981,3]
[309763539,1704100976768,-154.87609912,0.0002199,4]
[309763540,1704100976790,-3471.12171036,0.0002199,2]
[309763541,1704100976810,-19394.47219052,0.00021991,2]
[309763542,1704100997129,154.87609912,0.0001979,3]
[309763543,1704101017116,154.87609912,0.0001979,3]
[309763544,1704101033122,154.87609912,0.0001979,3]
[309763545,1704101045693,-19622.64196242,0.00021549,2]
[309763546,1704101045714,-3469.00135046,0.0002155,2]
[309763547,1704101045735,-172.95203609,0.00021893,2]
[309763548,1704101045756,-189.29,0.00021981,3]
[309763549,1704101045777,-295.55,0.00021981,3]
[309763550,1704101045798,-246.29,0.00021981,3]
[309763551,1704101045819,-154.87609912,0.0002199,2]
[309763552,1704101045839,-974.23467953,0.0002199,2]
[309763553,1704101045864,-4300.16387238,0.00021991,2]
[309763554,1704101057810,245.0,0.0001,2]
[309763555,1704101059672,523.11077865,0.0001979,2]
[309763556,1704101115319,-8295.0,0.00021991,2]
[309763557,1704101126866,974.23467953,0.0001979,2]
[309763558,1704101283827,566.321166,0.00021081,2]
[309763571,1704101371978,-154.87609912,0.00021915,2]
[309763572,1704101372005,-154.87609912,0.00021916,4]
[309763573,1704101372033,-166.98988,0.00021918,2]
[309763574,1704101372061,-205.24,0.0002199,3]
[309763575,1704101372091,-205.24,0.0002199,3]
[309763576,1704101372119,-821.0,0.0002199,3]
[309763577,1704101372148,-53198.23255762,0.00021991,2]
[309763578,1704101372270,24900.0,0.00020994,2]
[309763583,1704101388850,-154.87609912,0.0002199,4]
[309763584,1704101388878,-154.87609912,0.0002199,2]
[309763585,1704101388905,-7448.7021165,0.00021991,2]
[309763586,1704101388933,-5488.19561584,0.00021993,2]
[309763587,1704101389217,225.62738228,0.00021081,2]
[309763588,1704101407426,225.62738228,0.00021081,2]